bitfinex-derivatives/quotes_ETHF0:USTF0_20210402
["timestamp","ask_amount","ask_price","bid_price","bid_amount"]
[1617379477192,74.8099,2069.3,2068.8,2.90695]
[1617379477389,76.4708,2069.3,2068.8,2.90695]
[1617379477591,76.4708,2069.3,2068.8,1.38645]
[1617379478391,77.4324,2069.3,2068.8,1.38645]
[1617379478790,77.4324,2069.3,2067.5,2.571]
[1617379479190,77.4324,2069.3,2067.0,2.0]
[1617379479191,107.4324,2069.3,2067.0,2.0]
[1617379479393,77.4324,2069.3,2067.0,2.0]
[1617379480591,77.4324,2069.3,2066.5,0.02]
[1617379481091,77.4324,2069.3,2068.2,2.90695]
[1617379481292,14.3229,2069.2,2068.2,2.90695]
[1617379482096,14.3229,2069.2,2068.3,2.0]
[1617379482692,13.3601,2069.2,2068.3,2.0]
[1617379483692,0.9711,2069.9,2068.1,1.3969]
[1617379483892,72.8634,2069.0,2067.7,0.02]
[1617379484091,72.8634,2069.0,2067.8,2.0]
[1617379486997,72.8634,2069.0,2068.2,2.90695]
[1617379487398,72.8634,2069.0,2068.3,2.0]
[1617379487599,0.9532,2070.4,2068.3,2.0]
[1617379487802,70.9561,2070.2,2068.3,2.0]
[1617379488698,71.9342,2070.2,2068.3,2.0]
[1617379489099,71.9342,2070.2,2068.8,2.90695]
[1617379489299,71.9342,2070.2,2068.3,2.0]
[1617379489699,70.9714,2070.2,2068.3,2.0]
[1617379489899,70.9714,2070.2,2068.3,32.0]
[1617379490299,69.9933,2070.2,2068.3,32.0]
[1617379491099,69.9933,2070.2,2069.2,2.90695]
[1617379491302,69.9933,2070.2,2069.3,2.0]
[1617379491500,69.9933,2070.2,2069.2,1.9715]
[1617379492300,69.9933,2070.2,2068.4,32.0]
[1617379493100,69.9933,2070.2,2069.2,2.90695]
[1617379493306,14.0365,2071.1,2069.2,4.85345]
[1617379493501,14.0365,2071.1,2069.3,32.0]
[1617379493700,77.0094,2071.3,2069.3,32.0]
[1617379495101,77.0094,2071.3,2070.5,2.90695]
[1617379495300,77.0094,2071.3,2070.5,1.9307]
[1617379496203,107.0094,2071.3,2069.3,32.0]
[1617379496403,107.0094,2071.3,2068.7,1.8702]
[1617379496603,31.5496,2071.3,2067.8,32.0]
[1617379496803,58.8046,2070.4,2067.8,32.0]
[1617379497004,59.7713,2070.4,2068.7,2.90695]
[1617379497203,59.7713,2070.4,2068.8,2.0]
[1617379497404,59.7713,2070.4,2068.7,32.90695]
[1617379498003,59.7713,2070.4,2068.7,2.90695]
[1617379498004,88.8085,2070.4,2068.7,2.90695]
[1617379499204,2.90695,2068.8,2068.7,2.90695]
[1617379499806,2.90695,2068.8,2068.3,2.0]
[1617379500208,57.83335,2068.8,2067.8,2.0]
[1617379500708,57.83335,2068.8,2067.9,0.2919986]
[1617379501109,2.90695,2068.0,2067.9,5.1989486]
[1617379501518,2.90695,2068.0,2067.9,2.2919986]
[1617379502116,2.90695,2068.0,2067.0,2.0]
[1617379502315,2.90695,2068.0,2067.0,2.29273162]
[1617379502526,79.6591,2067.9,2067.0,32.29273162]
[1617379502717,79.6591,2067.9,2067.1,0.29281949]
[1617379503116,79.6591,2067.9,2067.3,2.90695]
[1617379503318,79.6591,2067.9,2067.3,3.87225]
[1617379503516,79.6591,2067.9,2067.3,2.90695]
[1617379503715,78.6963,2067.9,2067.3,2.90695]
[1617379505218,2.90695,2067.4,2067.3,2.90695]
[1617379506018,2.90695,2067.4,2067.0,32.571]
[1617379506619,2.90695,2067.4,2067.0,34.571]
[1617379507118,2.90695,2067.1,2067.0,37.47795]
[1617379507324,78.6963,2067.9,2067.0,5.47795]
[1617379507525,1.7352,2067.7,2067.0,2.86420756]
[1617379507721,1.7352,2067.7,2067.0,2.571]
[1617379507919,1.7352,2067.7,2067.0,0.0774]
[1617379508119,1.7352,2067.7,2066.5,0.02]
[1617379508319,1.7352,2067.7,2066.5,2.591]
[1617379508519,1.7352,2067.7,2066.5,2.571]
[1617379509119,2.90695,2066.6,2066.5,2.571]
[1617379510722,1.94415,2066.6,2066.5,2.571]
[1617379512122,2.92555,2066.6,2066.3,2.90695]
[1617379512322,1.94415,2066.6,2066.3,2.90695]
[1617379512522,1.94415,2066.6,2066.4,0.30081423]
[1617379513323,1.94415,2066.6,2066.4,1.25581423]
[1617379513524,2.92395,2066.6,2066.4,0.30081423]
[1617379514124,2.92395,2066.6,2065.8,34.571]
[1617379514525,1.94415,2066.6,2065.9,0.29851454]
[1617379515326,2.90695,2066.0,2065.9,0.29851454]
[1617379517430,2.90695,2066.0,2065.8,4.571]
[1617379517831,1.94415,2066.0,2065.9,0.29875002]
[1617379518133,1.94415,2066.0,2065.8,4.571]
[1617379518934,1.94415,2066.0,2065.8,2.571]
[1617379520340,1.94415,2066.0,2065.8,1.1261]
[1617379521141,1.94415,2066.0,2065.3,2.0]
[1617379521340,2.90695,2065.4,2065.3,7.47795]
[1617379521741,2.90695,2065.4,2065.3,7.77687924]
[1617379523142,2.90695,2065.4,2065.3,5.20587924]
[1617379523543,3.87775,2065.4,2065.3,5.20587924]
[1617379524846,0.9793,2066.1,2065.3,5.20587924]
[1617379525047,0.9783,2066.7,2065.3,5.20587924]
[1617379525248,56.1607,2067.0,2065.3,7.04957924]
[1617379525448,56.1607,2067.0,2066.1,4.73715]
[1617379525648,0.02732703,2073.6,2066.2,2.0]
[1617379525850,56.1268,2068.1,2066.2,2.0]
[1617379526450,56.1268,2068.1,2066.1,4.73715]
[1617379526849,55.1407,2068.1,2066.1,4.73715]
[1617379527451,55.1407,2068.1,2066.6,2.90695]
[1617379527651,1.2846,2068.1,2065.3,32.0]
[1617379527852,66.7725,2067.4,2065.3,32.0]
[1617379528053,69.493,2067.4,2065.3,32.0]
[1617379528455,69.493,2067.4,2065.4,0.29880159]
[1617379529256,67.728,2067.4,2065.4,1.66870159]
[1617379529657,67.728,2067.4,2065.5,0.29862758]
[1617379530057,66.7725,2067.4,2065.5,0.29862758]
[1617379531058,67.7506,2067.4,2065.5,0.29862758]
[1617379531456,2.90695,2067.3,2066.9,2.90695]
[1617379531656,3.87585,2067.3,2066.9,4.60225]
[1617379532459,2.90695,2067.3,2066.9,4.60225]
[1617379532960,2.90695,2067.3,2066.9,2.90695]
[1617379533360,2.90695,2067.0,2066.9,3.88785]
[1617379533761,1.94085,2067.0,2066.9,3.88785]
[1617379534161,1.94085,2067.0,2066.9,0.9809]
[1617379534561,1.94085,2067.0,2065.5,34.571]
[1617379535162,1.94085,2067.0,2065.6,0.29908212]
[1617379535362,76.4084,2067.2,2066.6,2.90695]
[1617379535563,76.4084,2067.2,2066.6,5.47795]
[1617379535762,27.2291,2068.2,2066.6,5.47795]
[1617379537362,27.2291,2068.2,2066.9,2.90695]
[1617379538663,27.2291,2068.2,2066.6,2.571]
[1617379539266,66.5293,2067.5,2066.6,2.571]
[1617379539465,2.90695,2066.7,2066.6,2.571]
[1617379539866,3.86935,2066.7,2066.6,2.571]
[1617379540266,3.86935,2066.7,2066.6,1.354]
[1617379540867,2.90325,2066.7,2066.6,1.354]
[1617379541267,1.94085,2066.7,2066.6,1.354]
[1617379542269,1.94085,2066.7,2066.6,0.9645]
[1617379542468,2.89815,2066.7,2066.6,0.9645]
[1617379542870,1.94085,2066.7,2066.3,2.90695]
[1617379543270,1.94085,2066.7,2066.3,2.42595]
[1617379543471,2.90695,2066.4,2066.3,2.42595]
[1617379544269,2.90695,2066.4,2065.4,9.669]
[1617379544471,76.2374,2066.2,2065.4,9.669]
[1617379545473,76.2374,2066.2,2065.8,2.90695]
[1617379546775,0.9612,2066.7,2065.8,2.90695]
[1617379546974,54.7435,2066.9,2065.8,2.90695]
[1617379547575,54.7435,2066.9,2066.3,2.90695]
[1617379547774,53.7774,2066.9,2066.3,2.90695]
[1617379549276,53.7774,2066.9,2065.4,9.669]
[1617379549477,55.0254,2066.9,2066.0,2.90695]
[1617379549677,55.0254,2066.9,2066.0,5.47795]
[1617379550379,55.0254,2066.9,2066.0,2.571]
[1617379551582,2.90695,2066.1,2066.0,2.571]
[1617379553581,2.90695,2066.1,2066.0,5.47795]
[1617379553980,79.59015,2066.1,2066.0,5.47795]
[1617379554480,79.59015,2066.1,2066.0,2.571]
[1617379554881,78.62405,2066.1,2066.0,2.571]
[1617379556084,78.62405,2066.1,2065.4,7.669]
[1617379557081,78.62405,2066.1,2065.4,2.571]
[1617379557482,76.6832,2066.1,2065.8,2.90695]
[1617379557882,1.3738,2066.3,2065.4,2.571]
[1617379558085,61.7958,2065.5,2065.4,2.571]
[1617379559485,64.70275,2065.5,2065.4,5.47795]
[1617379559685,2.90695,2065.5,2065.4,5.47795]
[1617379559883,2.90695,2065.5,2065.4,5.78360658]
[1617379561885,65.0545,2066.0,2065.4,5.47795]
[1617379562087,65.0545,2066.0,2065.4,3.2128405]
[1617379562484,65.0545,2066.0,2065.5,0.30582905]
[1617379562885,65.0545,2066.0,2065.5,2.30582905]
[1617379563485,65.0545,2066.0,2065.6,0.30586988]
[1617379563685,65.0545,2066.0,2065.7,2.90695]
[1617379565684,2.90695,2065.8,2065.7,2.90695]
[1617379568888,1.94085,2065.8,2065.7,2.90695]
[1617379569091,65.0545,2066.0,2065.7,2.90695]
[1617379569691,2.90695,2065.9,2065.7,2.90695]
[1617379575995,1.94085,2065.9,2065.7,2.90695]
[1617379577297,3.90095,2065.9,2065.7,2.90695]
[1617379578498,1.94085,2065.9,2065.7,2.90695]
[1617379579800,65.0545,2066.0,2065.7,2.90695]
[1617379582900,64.0884,2066.0,2065.7,2.90695]
[1617379587707,2.90695,2065.8,2065.7,2.90695]
[1617379588708,64.0884,2066.0,2065.7,2.90695]
[1617379589509,64.0884,2066.0,2065.7,4.90695]
[1617379589910,63.1223,2066.0,2065.7,4.90695]
[1617379590412,63.1223,2066.0,2065.7,2.90695]
[1617379591209,63.1223,2066.0,2065.8,2.0]
[1617379591409,2.90695,2066.3,2065.8,2.0]
[1617379591609,72.0857,2067.0,2065.9,30.0]
[1617379591810,72.0857,2067.0,2066.9,2.90695]
[1617379592209,72.0857,2067.0,2066.9,4.35505]
[1617379593811,74.99265,2067.0,2066.9,4.35505]
[1617379594012,72.0857,2067.0,2066.9,4.35505]
[1617379595111,72.0857,2067.0,2066.9,2.90695]
[1617379595711,74.99265,2067.0,2066.9,1.18705]
[1617379596113,74.99265,2067.0,2066.4,2.571]
[1617379597711,72.0857,2067.0,2066.7,2.90695]
[1617379597914,73.9045,2067.0,2066.4,2.571]
[1617379599014,73.9045,2067.0,2066.4,1.8507]
[1617379599214,73.9045,2067.0,2066.0,2.571]
[1617379599614,103.9045,2067.0,2066.0,2.571]
[1617379599814,2.90695,2066.1,2066.0,0.9838]
[1617379600017,75.3289,2066.0,2065.6,2.90695]
[1617379600215,72.7579,2066.0,2065.6,2.90695]
[1617379601014,72.7579,2066.0,2065.6,5.47795]
[1617379601214,72.7579,2066.0,2065.6,4.82095]
[1617379601916,2.90695,2065.7,2065.6,4.82095]
[1617379606621,2.90695,2065.7,2065.6,4.72795]
[1617379607424,2.90695,2065.7,2065.6,2.571]
[1617379607624,2.90695,2065.7,2065.6,2.1773]
[1617379608224,2.90695,2065.7,2065.1,2.571]
[1617379608425,2.90695,2065.7,2065.1,1.4059]
[1617379608623,2.90695,2065.7,2065.0,1.66365]
[1617379608826,2.90695,2065.7,2065.0,5e-05]
[1617379608827,66.0041,2065.1,2065.0,5e-05]
[1617379609025,2.3333,2065.1,2065.0,5e-05]
[1617379609826,5.24025,2065.1,2065.0,5e-05]
[1617379611428,35.24025,2065.1,2065.0,5e-05]
[1617379612832,5.24025,2065.1,2065.0,5e-05]
[1617379613232,3.87565,2065.1,2065.0,5e-05]
[1617379614033,3.87565,2065.1,2064.1,1.4615]
[1617379614233,61.149,2064.3,2063.3,32.0]
[1617379614433,1.2204,2064.3,2063.3,32.0]
[1617379614634,1.2204,2064.3,2063.4,0.31201972]
[1617379614635,61.1487,2063.9,2063.4,0.31201972]
[1617379615935,61.1487,2063.9,2063.7,2.90695]
[1617379616134,63.098,2063.9,2063.7,2.90695]
[1617379617938,2.90695,2063.8,2063.7,2.90695]
[1617379618137,2.90695,2063.8,2063.0,2.0]
[1617379618338,2.90695,2063.8,2062.2,30.0]
[1617379619139,2.90695,2063.8,2062.3,0.31188662]
[1617379619338,32.90695,2063.8,2062.3,0.31188662]
[1617379619941,2.90695,2062.4,2062.3,3.21883662]
[1617379620340,4.66855,2062.4,2062.3,5.21883662]
[1617379621141,1.7616,2062.4,2062.3,5.21883662]
[1617379621341,78.0867,2062.5,2062.3,4.90695]
[1617379621741,1.4457,2063.2,2062.3,4.90695]
[1617379621942,28.0061,2064.2,2063.1,2.90695]
[1617379622142,88.7431,2064.2,2063.1,2.90695]
[1617379622542,75.1355,2064.2,2063.1,32.90695]
[1617379622842,75.1355,2064.2,2063.2,2.0]
[1617379623743,75.1355,2064.2,2063.2,32.0]
[1617379623944,75.1355,2064.2,2063.6,2.90695]
[1617379624143,74.158,2064.2,2063.6,2.90695]
[1617379625243,75.1395,2064.2,2063.6,2.90695]
[1617379626046,2.90695,2063.7,2062.9,2.591]
[1617379626245,4.49415,2063.7,2062.9,2.591]
[1617379626644,5.46305,2063.7,2062.9,2.591]
[1617379627645,3.87585,2063.7,2062.9,32.591]
[1617379627845,2.90695,2063.7,2062.9,32.591]
[1617379628045,75.1395,2064.2,2063.5,2.90695]
[1617379628246,0.9728,2064.9,2063.5,2.90695]
[1617379628446,0.9728,2064.9,2063.6,30.0]
[1617379629447,0.0069,2064.9,2063.6,30.0]
[1617379630046,0.0069,2064.9,2064.0,2.90695]
[1617379631552,0.0069,2064.9,2064.0,2.78855]
[1617379632153,2.90695,2064.1,2064.0,5.35955]
[1617379633352,3.87355,2064.1,2064.0,5.35955]
[1617379634053,3.87355,2064.1,2064.0,2.571]
[1617379634854,3.87355,2064.1,2063.2,0.02]
[1617379635454,3.87355,2064.1,2062.6,30.0]
[1617379635853,3.87355,2064.1,2063.5,0.02]
[1617379636055,2.90695,2063.6,2063.5,0.02]
[1617379636253,3.88655,2063.6,2063.5,0.02]
[1617379636453,2.92065,2063.6,2063.5,0.02]
[1617379641360,2.92065,2063.6,2061.5,35.098]
[1617379641560,55.8663,2062.4,2061.5,35.098]
[1617379641961,55.8663,2062.4,2061.6,0.30947005]
[1617379642159,55.8663,2062.4,2062.3,2.90695]
[1617379643360,54.9004,2062.4,2062.3,2.90695]
[1617379644060,57.80735,2062.4,2062.3,2.90695]
[1617379647167,2.90695,2062.4,2062.3,2.90695]
[1617379649571,2.90695,2062.4,2062.2,0.02]
[1617379650370,1.94105,2062.4,2062.2,0.02]
[1617379650972,1.94105,2062.4,2061.5,35.098]
[1617379651173,61.3723,2062.2,2061.5,35.098]
[1617379651576,61.3723,2062.2,2061.6,0.31013406]
[1617379651976,61.3723,2062.2,2061.9,0.02]
[1617379652176,61.3723,2062.2,2062.1,2.90695]
[1617379654180,64.27925,2062.2,2062.1,2.90695]
[1617379655077,61.3723,2062.2,2062.1,2.90695]
[1617379656280,64.27925,2062.2,2062.1,2.90695]
[1617379656479,64.27925,2062.2,2061.9,0.02]
[1617379657379,63.31335,2062.2,2061.9,0.02]
[1617379657981,2.90695,2062.2,2061.9,0.02]
[1617379658380,2.90695,2062.2,2061.1,2.90695]
[1617379658980,2.90695,2062.2,2061.5,0.31273381]
[1617379659380,2.90695,2062.2,2061.6,0.02]
[1617379659980,58.9968,2061.8,2061.6,0.02]
[1617379660382,2.90695,2061.7,2061.6,0.02]
[1617379661081,2.88695,2061.7,2061.6,0.02]
[1617379661281,2.88695,2061.7,2060.8,5.47795]
[1617379661784,2.88695,2061.7,2060.9,0.31281216]
[1617379661982,2.88695,2061.7,2061.3,0.02]
[1617379662385,2.90695,2061.4,2061.3,0.02]
[1617379663183,4.51475,2061.4,2061.3,0.02]
[1617379664386,1.92105,2061.4,2061.3,2.92695]
[1617379666788,69.4683,2062.3,2061.3,2.92695]
[1617379666989,69.4683,2062.3,2061.3,34.59515]
[1617379667988,13.0023,2063.3,2061.3,34.59515]
[1617379668187,0.9796,2063.6,2061.3,34.59515]
[1617379668389,0.9796,2063.6,2063.0,2.90695]
[1617379668589,0.9796,2063.6,2063.0,4.25215]
[1617379668788,13.2127,2064.0,2063.0,4.25215]
[1617379668990,77.309,2064.1,2063.0,4.25215]
[1617379669390,77.309,2064.1,2063.0,34.25215]
[1617379670390,77.309,2064.1,2063.3,2.90695]
[1617379671390,76.3431,2064.1,2063.3,2.90695]
[1617379672392,2.90695,2063.4,2063.3,2.90695]
[1617379676596,2.90695,2063.4,2062.5,0.02]
[1617379677098,2.90695,2063.4,2062.1,32.571]
[1617379677300,2.90695,2063.4,2062.1,33.5547]
[1617379677506,2.90695,2063.4,2062.7,0.02]
[1617379677702,2.90695,2063.4,2062.7,1.4028]
[1617379678099,56.748,2064.7,2062.7,1.4028]
[1617379678501,55.7821,2064.7,2063.8,2.90695]
[1617379678906,55.7821,2064.7,2063.7,1.6555]
[1617379679106,55.7821,2064.7,2062.7,0.02]
[1617379679307,87.6562,2064.7,2062.7,0.02]
[1617379679904,2.0,2064.6,2062.7,0.02]
[1617379680101,32.0,2064.6,2062.7,0.02]
[1617379680301,30.0,2064.6,2062.7,0.02]
[1617379680501,30.0,2064.6,2063.2,2.90695]
[1617379680701,30.0,2064.6,2062.7,0.02]
[1617379681104,32.0,2064.6,2062.7,0.02]
[1617379682102,2.0,2064.6,2062.7,0.02]
[1617379682305,55.7821,2064.7,2062.7,0.02]
[1617379682504,55.7821,2064.7,2063.1,2.90695]
[1617379683104,2.0,2064.6,2063.1,2.90695]
[1617379683305,55.7821,2064.7,2063.1,2.90695]
[1617379684508,2.90695,2063.2,2063.1,2.90695]
[1617379685409,1.94105,2063.2,2063.1,2.90695]
[1617379688313,59.64335,2063.2,2063.1,2.90695]
[1617379690514,60.59945,2063.2,2063.1,2.90695]
[1617379690715,2.89715,2063.2,2063.1,32.90695]
[1617379691114,1.94105,2063.2,2063.1,32.90695]
[1617379692515,0.97515,2063.2,2063.1,32.90695]
[1617379693016,0.97515,2063.2,2063.1,2.90695]
[1617379693217,0.97515,2063.2,2062.7,0.02]
[1617379694416,76.263,2062.7,2062.3,2.90695]
[1617379694816,76.263,2062.7,2062.5,0.02]
[1617379695216,76.263,2062.7,2062.3,2.90695]
[1617379695616,76.263,2062.7,2062.1,2.571]
[1617379696519,2.90695,2062.2,2062.1,2.571]
[1617379698620,79.16995,2062.7,2062.1,34.1983]
[1617379698820,29.5784,2064.1,2062.1,34.1983]
[1617379699020,76.7339,2063.9,2062.1,34.1983]
[1617379699221,76.7339,2063.9,2062.2,0.31234132]
[1617379700522,76.7339,2063.9,2062.9,2.90695]
[1617379702523,2.90695,2063.0,2062.9,4.57735]
[1617379706824,2.90695,2063.0,2062.9,2.90695]
[1617379712333,2.90695,2063.0,2062.9,34.23445]
[1617379714336,2.90695,2063.0,2062.9,34.54466425]
[1617379717141,2.90695,2063.0,2062.9,34.23445]
[1617379717341,2.90695,2063.0,2062.9,34.54441723]
[1617379718041,3.87745,2063.0,2062.9,33.21691723]
[1617379718241,2.90695,2063.0,2062.9,33.21691723]
[1617379720442,2.90695,2063.0,2062.9,32.90695]
[1617379721243,2.90695,2063.0,2062.9,33.21684575]
[1617379722043,0.9658,2063.7,2062.9,34.89544575]
[1617379722243,0.42,2063.9,2062.9,34.89544575]
[1617379722643,0.42,2063.9,2063.4,2.90695]
[1617379723343,0.42,2063.9,2063.4,4.60165]
[1617379724647,2.90695,2063.5,2063.4,4.60165]
[1617379725647,2.90695,2063.5,2063.4,4.91040166]
[1617379726047,2.90695,2063.5,2063.4,4.60165]
[1617379726247,0.42,2063.9,2063.4,4.60165]
[1617379726448,0.42,2063.9,2063.4,4.91050602]
[1617379726647,0.42,2063.9,2063.8,2.90695]
[1617379735157,0.42,2063.9,2063.8,32.90695]
[1617379736158,0.42,2063.9,2063.8,33.216148]
[1617379736359,0.42,2063.9,2063.8,34.179648]
[1617379740661,0.0001,2063.9,2063.8,34.179648]
[1617379740861,2.90695,2064.6,2063.8,34.179648]
[1617379741263,2.90695,2064.6,2063.9,0.30824092]
[1617379742863,2.30695,2064.9,2064.5,32.90695]
[1617379744466,78.0012,2065.1,2064.5,32.90695]
[1617379744664,0.9754,2066.7,2064.5,32.90695]
[1617379744865,61.3215,2065.7,2065.3,2.90695]
[1617379746167,0.9754,2066.7,2065.3,2.90695]
[1617379746368,0.9754,2066.7,2065.3,4.39025]
[1617379746767,2.90695,2065.4,2065.3,4.39025]
[1617379747769,2.90695,2065.4,2065.3,2.90695]
[1617379763292,73.0667,2066.2,2065.3,2.90695]
[1617379764895,73.0667,2066.2,2066.0,2.90695]
[1617379765096,73.0667,2066.2,2065.9,1.9678]
[1617379766399,73.0667,2066.2,2065.1,1.4397]
[1617379766896,74.3142,2066.2,2065.5,2.90695]
[1617379767698,32.0,2066.1,2064.0,30.0]
[1617379767896,32.9723,2066.1,2063.3,30.0]
[1617379768097,59.389,2065.0,2063.3,30.0]
[1617379768297,60.9852,2065.0,2063.4,0.30872591]
[1617379768898,60.9852,2065.0,2064.3,2.90695]
[1617379769100,60.9852,2065.0,2064.3,5.47795]
[1617379770000,59.389,2065.0,2064.3,5.47795]
[1617379770900,2.90695,2064.4,2064.3,5.47795]
[1617379772301,2.90695,2064.4,2062.8,2.591]
[1617379772905,66.048,2064.0,2063.8,2.90695]
[1617379773104,67.2583,2064.0,2063.8,5.47795]
[1617379773505,67.2583,2064.0,2063.8,2.571]
[1617379774906,2.90695,2063.9,2063.8,2.571]
[1617379777008,66.048,2064.0,2063.8,2.571]
[1617379777408,67.0189,2064.0,2063.8,2.571]
[1617379777609,67.0189,2064.0,2063.9,2.90695]
[1617379777809,66.048,2064.0,2063.9,2.90695]
[1617379778211,66.048,2064.0,2063.8,2.571]
[1617379779515,66.048,2064.0,2063.9,2.90695]
[1617379780815,0.9694,2064.3,2063.9,2.90695]
[1617379781015,65.2478,2064.8,2063.9,2.90695]
[1617379781414,95.2478,2064.8,2063.9,2.90695]
[1617379781616,2.90695,2064.0,2063.8,2.571]
[1617379782215,2.90695,2064.0,2062.7,32.571]
[1617379782817,2.90695,2064.0,2062.8,0.3116516]
[1617379783218,63.2478,2064.8,2062.8,0.3116516]
[1617379783420,62.2704,2064.8,2062.8,1.6409516]
[1617379783617,2.90695,2063.9,2062.8,1.6409516]
[1617379783821,82.49565,2063.9,2062.8,1.6409516]
[1617379784020,82.49565,2063.9,2062.9,0.31160718]
[1617379784821,82.49565,2063.9,2062.8,0.31161241]
[1617379785022,82.49565,2063.9,2063.0,0.31160769]
[1617379785421,82.49565,2063.9,2062.9,0.31162385]
[1617379785623,79.5887,2063.9,2063.6,2.90695]
[1617379786220,0.42,2065.0,2063.6,2.90695]
[1617379786821,58.1744,2064.9,2063.6,2.90695]
[1617379787021,59.1534,2064.9,2063.6,2.90695]
[1617379787623,59.1534,2064.9,2063.1,1.8793]
[1617379787624,58.1744,2064.9,2063.9,2.90695]
[1617379788430,0.42,2065.0,2063.9,32.90695]
[1617379788828,0.42,2065.0,2064.0,0.31171563]
[1617379789628,0.42,2065.0,2064.9,2.90695]
[1617379790030,0.42,2065.0,2064.9,4.33345]
[1617379791130,0.42,2065.0,2064.2,1.6202]
[1617379791330,70.8596,2064.9,2064.2,1.6202]
[1617379791730,2.90695,2064.3,2064.2,1.6202]
[1617379792333,2.90695,2064.3,2063.3,0.02]
[1617379792531,2.90695,2064.3,2062.8,30.0]
[1617379792931,56.4123,2064.0,2062.8,30.0]
[1617379793131,56.4123,2064.0,2062.9,0.31180325]
[1617379793732,56.4123,2064.0,2063.6,2.90695]
[1617379793932,56.4123,2064.0,2063.6,5.47795]
[1617379795134,56.4123,2064.0,2063.6,2.90695]
[1617379795736,2.90695,2063.7,2063.6,2.90695]
[1617379796140,2.90695,2063.7,2063.6,5.47795]
[1617379798945,56.4123,2064.0,2063.6,5.47795]
[1617379799543,13.6478,2064.8,2063.6,5.47795]
[1617379799745,87.2598,2064.8,2063.9,2.90695]
[1617379801858,87.2598,2064.8,2064.2,2.90695]
[1617379802051,73.612,2064.8,2064.2,2.90695]
[1617379802251,0.9538,2065.4,2064.2,4.45425]
[1617379802652,54.4113,2065.8,2064.2,4.45425]
[1617379803152,30.0,2065.8,2064.2,4.45425]
[1617379803353,58.2817,2064.7,2064.2,2.90695]
[1617379803551,58.2817,2064.7,2063.6,2.571]
[1617379803751,58.2817,2064.7,2063.9,2.90695]
[1617379805554,2.0,2064.6,2063.9,2.90695]
[1617379805755,2.90695,2064.0,2063.9,2.90695]
[1617379806355,2.90695,2064.0,2063.6,2.571]
[1617379807157,2.90695,2064.0,2062.7,32.571]
[1617379807455,2.90695,2064.0,2062.8,0.31167114]
[1617379807856,2.7886,2064.3,2063.5,2.90695]
[1617379808056,1.8067,2064.3,2063.5,2.90695]
[1617379808257,1.8067,2064.3,2063.5,5.47795]
[1617379809068,2.7632,2064.3,2063.5,2.90695]
[1617379809465,2.7632,2064.3,2062.7,32.571]
[1617379809873,2.90695,2063.6,2063.4,2.90695]
[1617379810061,2.90695,2063.6,2063.4,5.47795]
[1617379810474,59.3531,2063.5,2063.4,5.47795]
[1617379810673,59.3531,2063.5,2063.4,2.571]
[1617379811766,59.3531,2063.5,2063.4,5.47795]
[1617379812367,59.3531,2063.5,2063.4,2.90695]
[1617379812765,59.3531,2063.5,2062.7,32.571]
[1617379812965,59.3531,2063.5,2062.8,0.31288955]
[1617379813765,2.90695,2062.9,2062.8,3.21983955]
[1617379813966,59.3531,2063.5,2062.8,3.21983955]
[1617379814367,59.3531,2063.5,2062.9,0.31292167]
[1617379814767,59.3531,2063.5,2062.8,2.90695]
[1617379815268,59.3531,2063.5,2062.9,0.31290652]
[1617379815871,59.3531,2063.5,2063.2,2.90695]
[1617379817872,2.90695,2063.3,2063.2,2.90695]
[1617379822279,4.89635,2063.3,2063.2,0.31473686]
[1617379822877,4.89635,2063.3,2062.8,0.31475132]
[1617379823277,4.89635,2063.3,2063.2,0.31475061]
[1617379823678,2.90695,2063.3,2062.8,0.31474707]
[1617379823879,59.3531,2063.5,2063.0,2.90695]
[1617379824279,59.3531,2063.5,2063.1,0.31474727]
[1617379825979,2.90695,2063.2,2063.1,0.31474727]
[1617379827381,2.90695,2063.2,2063.0,2.90695]
[1617379833684,32.90695,2063.2,2063.0,2.90695]
[1617379837688,58.9494,2063.0,2061.3,38.6397]
[1617379837890,58.9494,2063.0,2061.4,0.31322106]
[1617379838089,58.9494,2063.0,2062.2,2.90695]
[1617379838290,58.9494,2063.0,2062.2,5.47795]
[1617379838689,58.9494,2063.0,2062.3,0.31322543]
[1617379839992,58.9494,2063.0,2062.5,2.90695]
[1617379841993,2.90695,2062.6,2062.5,2.90695]
[1617379842594,2.90695,2062.6,2062.5,3.21999216]
[1617379845502,4.68325,2062.6,2062.5,3.21999216]
[1617379846800,2.90695,2062.6,2062.5,3.21999216]
[1617379849702,0.42,2063.0,2062.5,3.21999216]
[1617379850102,0.42,2063.0,2062.9,4.33095]
[1617379850905,0.42,2063.0,2062.9,4.64408176]
[1617379851505,1.3764,2063.0,2062.9,5.61058176]
[1617379851706,0.42,2063.0,2062.9,4.64408176]
[1617379852907,0.42,2063.0,2062.9,3.22008176]
[1617379854309,0.0001,2063.0,2062.9,4.91828176]
[1617379854509,0.967,2064.8,2062.9,34.91828176]
[1617379854909,72.9657,2064.0,2063.0,0.31328392]
[1617379856208,72.9657,2064.0,2063.9,2.90695]
[1617379856608,72.9657,2064.0,2062.8,0.9733]
[1617379856808,72.9657,2064.0,2062.4,5.11986313]